fUSD/lending_fUSD_20251225
["ID","MTS","AMOUNT","RATE_DAILY","PERIOD"]
[399766101,1766661043585,-1000.0,0.00016861,2]
[399766102,1766661043596,-200.0,0.00016863,2]
[399766103,1766661043607,-200.0,0.00016864,2]
[399766104,1766661043618,-200.0,0.00016864,2]
[399766105,1766661043628,-1000.0,0.0001687,2]
[399766106,1766661043638,-1000.0,0.00016892,2]
[399766107,1766661043648,-300.0,0.00016894,2]
[399766108,1766661043657,-246.0,0.00016897,2]
[399766109,1766661043667,-573.89559167,0.000169,2]
[399766110,1766661043677,-43535.1980641,0.000169,2]
[399766111,1766661043687,-3198.71244042,0.000169,2]
[399766112,1766661043697,-797.67684347,0.000169,2]
[399766113,1766661043707,-682.51496731,0.000169,2]
[399766114,1766661043719,-156.81485744,0.000169,2]
[399766115,1766661043729,-263.03989768,0.000169,2]
[399766116,1766661043740,-224.59309911,0.000169,2]
[399766117,1766661043750,-150.0,0.00016912,2]
[399766118,1766661043760,-355.0,0.00016917,2]
[399766119,1766661043771,-158.0186416,0.00016935,2]
[399766120,1766661043781,-150.0,0.00016937,2]
[399766121,1766661043791,-300.0,0.00016942,2]
[399766122,1766661043801,-150.0,0.00016946,2]
[399766123,1766661043811,-150.0,0.00016952,2]
[399766124,1766661043821,-300.0,0.00016953,2]
[399766125,1766661043831,-1227.0,0.00016959,2]
[399766126,1766661043841,-229.0,0.00016959,2]
[399766127,1766661043851,-800.78551976,0.0001697,2]
[399766128,1766661043861,-500.0,0.0001697,2]
[399766129,1766661043871,-164.91223401,0.00016973,2]
[399766130,1766661043882,-223.10484954,0.00016973,2]
[399766131,1766661043891,-500.0,0.00016973,2]
[399766132,1766661043902,-578.60342662,0.00016973,2]
[399766133,1766661043912,-500.0,0.00016973,2]
[399766134,1766661043922,-500.0,0.00016973,2]
[399766135,1766661043932,-500.0,0.00016973,2]
[399766136,1766661043942,-501.7326664,0.00016973,2]
[399766137,1766661043952,-322.88246699,0.00016973,2]
[399766138,1766661043962,-157.08021771,0.00016973,2]
[399766139,1766661043973,-500.0,0.00016973,2]
[399766140,1766661043983,-150.0,0.00016973,2]
[399766141,1766661043993,-1000.0,0.00016974,2]
[399766142,1766661044003,-300.0,0.00016977,2]
[399766143,1766661044014,-505.30351694,0.00016983,2]
[399766144,1766661044024,-218.14975262,0.00016983,2]
[399766145,1766661044034,-105966.74,0.00016986,2]
[399766146,1766661044044,-1778.12366067,0.0001699,2]
[399766147,1766661044054,-1778.12366067,0.0001699,2]
[399766148,1766661044064,-116875.1053369,0.00016995,2]
[399766149,1766661044076,-151.0,0.00016997,2]
[399766150,1766661044087,-151.0,0.00016997,2]
[399766151,1766661044097,-1060.87558748,0.00016999,5]
[399766152,1766661044108,-1060.87558749,0.00016999,5]
[399766153,1766661044119,-622.31367143,0.00016999,2]
[399766154,1766661044129,-500.0,0.00016999,2]
[399766155,1766661044139,-500.0,0.00016999,2]
[399766156,1766661044151,-500.0,0.00016999,2]
[399766157,1766661044160,-500.0,0.00016999,2]
[399766158,1766661044170,-500.0,0.00016999,2]
[399766159,1766661044180,-500.0,0.00016999,2]
[399766160,1766661044191,-500.0,0.00016999,2]
[399766161,1766661044201,-500.0,0.00016999,2]
[399766162,1766661044212,-500.0,0.00016999,2]
[399766163,1766661044222,-500.0,0.00016999,2]
[399766164,1766661044232,-500.0,0.00016999,2]
[399766165,1766661044243,-500.0,0.00016999,2]
[399766166,1766661044253,-500.0,0.00016999,2]
[399766167,1766661044263,-343.5179723,0.00016999,2]
[399766168,1766661044274,-300.0,0.00016999,2]
[399766169,1766661044284,-666.0,0.00016999,2]
[399766170,1766661044294,-2276344.6820691,0.00017,2]
[399766171,1766661044306,-1557381.45147792,0.00017,2]
[399766172,1766661044315,-150.0,0.00017,2]
[399766173,1766661044326,-2416.5126871,0.00017,2]
[399766174,1766661044336,-15407.0444481,0.00017,2]
[399766175,1766661044346,-250.0,0.00017,2]
[399766176,1766661044355,-16054.2317229,0.00017,2]
[399766177,1766661044364,-772.19361658,0.00017,2]
[399766178,1766661044374,-1000.0,0.00017,2]
[399766179,1766661044384,-1256.0,0.00017,2]
[399766180,1766661044394,-152.0,0.00017,2]
[399766181,1766661044404,-152.0,0.00017,2]
[399766182,1766661044413,-500.0,0.00017,2]
[399766183,1766661044423,-767.7842514,0.00017021,2]
[399766184,1766661044433,-306.79834017,0.00017028,2]
[399766185,1766661044443,-168.0,0.00017033,2]
[399766186,1766661044452,-320.0,0.00017112,2]
[399766187,1766661044462,-355.0,0.00017113,2]
[399766188,1766661044472,-300.0,0.00017135,2]
[399766189,1766661044482,-666.0,0.00017135,2]
[399766190,1766661044493,-30000.0,0.00017136,2]
[399766191,1766661044503,-353.0,0.00017142,2]
[399766192,1766661044513,-320.0,0.00017144,2]
[399766193,1766661044524,-320.0,0.0001717,2]
[399766194,1766661044534,-353.0,0.00017179,2]
[399766195,1766661044545,-2016.84817673,0.00017185,2]
[399766196,1766661044554,-353.0,0.00017204,2]
[399766197,1766661044564,-355.0,0.00017239,2]
[399766198,1766661044574,-320.0,0.00017291,2]
[399766199,1766661044584,-425.0,0.000173,2]
[399766200,1766661044595,-1000.0,0.000173,2]
[399766201,1766661044604,-353.0,0.00017311,2]
[399766202,1766661044615,-320.0,0.0001733,2]
[399766203,1766661044626,-355.0,0.00017338,2]
[399766204,1766661044636,-355.0,0.00017346,2]
[399766205,1766661044646,-320.0,0.0001739,2]
[399766206,1766661044657,-320.0,0.00017413,2]
[399766207,1766661044667,-986.0,0.000175,2]
[399766208,1766661044678,-305.0,0.000175,2]
[399766209,1766661044688,-355.0,0.00017504,2]
[399766210,1766661044698,-500.0,0.00017521,2]
[399766211,1766661044709,-500.0,0.00017521,2]
[399766212,1766661044719,-1000.0,0.00017521,2]
[399766213,1766661044730,-460.58,0.00017538,2]
[399766214,1766661044739,-796.19226871,0.00017569,2]
[399766215,1766661044750,-353.0,0.00017592,2]
[399766216,1766661044759,-353.0,0.00017598,2]
[399766217,1766661044771,-1613.0,0.00017613,2]
[399766218,1766661044781,-1613.0,0.00017613,2]
[399766219,1766661044801,-355.0,0.00017641,2]
[399766220,1766661044811,-200.18,0.00017655,2]
[399766221,1766661044822,-320.0,0.00017684,2]
[399766222,1766661044832,-355.0,0.00017688,2]
[399766223,1766661044843,-403.0,0.000177,5]
[399766224,1766661044852,-6453.0,0.00017701,2]
[399766225,1766661044864,-460.58,0.0001773,2]
[399766226,1766661044875,-500.0,0.00017808,2]
[399766227,1766661044885,-500.0,0.00017835,2]
[399766228,1766661044897,-162.00371102,0.00017863,2]
[399766229,1766661044907,-460.58,0.00017921,2]
[399766230,1766661044916,-500.0,0.00017973,2]
[399766231,1766661044926,-500.0,0.00017973,2]
[399766232,1766661044936,-500.0,0.00017973,2]
[399766233,1766661044946,-500.0,0.00017973,2]
[399766234,1766661044956,-515.54072242,0.00017973,2]
[399766235,1766661044966,-648.46173605,0.00017973,2]
[399766236,1766661044976,-500.0,0.00017973,2]
[399766237,1766661044986,-349.16265713,0.00017973,2]
[399766238,1766661044996,-500.0,0.00017973,2]
[399766239,1766661045006,-500.0,0.00017973,2]
[399766240,1766661045016,-500.0,0.00017973,2]
[399766241,1766661045027,-500.0,0.00017973,2]
[399766242,1766661045036,-300.0,0.00017999,2]
[399766243,1766661045046,-213629.13418948,0.00018,2]
[399766244,1766661045056,-1500.0,0.00018068,2]
[399766245,1766661045066,-373.07297731,0.00018113,2]
[399766246,1766661045080,-543.0,0.00018113,2]
[399766247,1766661045090,-716.97946142,0.00018113,2]
[399766248,1766661045101,-825.65138266,0.00018117,2]
[399766249,1766661045111,-500.0,0.00018147,2]
[399766250,1766661045123,-308.61264672,0.00018521,2]
[399766251,1766661045133,-598.60555363,0.00018521,2]
[399766252,1766661045144,-500.0,0.00018521,2]
[399766253,1766661045156,-2000.0,0.00018616,2]
[399766254,1766661045166,-300.0,0.00018799,2]
[399766255,1766661045176,-151.03,0.000188,2]
[399766256,1766661045187,-151.03,0.000188,2]
[399766257,1766661045197,-15407.0444481,0.000188,2]
[399766258,1766661045207,-300.0,0.0001898,2]
[399766259,1766661045218,-26078.3609711,0.00018981,2]
[399766260,1766661045228,-300.0,0.00018999,2]
[399766261,1766661045238,-939.43427775,0.00019,2]
[399766262,1766661045248,-82867.75737392,0.00019,2]
[399766263,1766661045258,-82867.75737392,0.00019,2]
[399766264,1766661045268,-300.0,0.00019,2]
[399766265,1766661045278,-430.89879545,0.00019,2]
[399766266,1766661045288,-553.51439767,0.00019164,2]
[399766267,1766661045298,-3459.0,0.00019171,2]
[399766268,1766661045308,-1327.0,0.00019171,2]
[399766269,1766661045318,-612.0,0.00019171,2]
[399766270,1766661045327,-1610.0,0.00019171,2]
[399766271,1766661045337,-1263.0,0.00019171,2]
[399766272,1766661045347,-432.0,0.00019171,2]
[399766273,1766661045357,-564.0,0.00019181,2]
[399766274,1766661045367,-6534.0,0.00019181,2]
[399766275,1766661045377,-4807.0,0.00019181,2]
[399766276,1766661045387,-231.28369723,0.00019209,2]
[399766277,1766661045398,-150.0,0.00019223,2]
[399766278,1766661045408,-150.0,0.00019223,2]
[399766279,1766661045417,-150.0,0.00019223,2]
[399766280,1766661045427,-150.0,0.00019223,2]
[399766281,1766661045437,-150.0,0.00019223,2]
[399766282,1766661045446,-150.0,0.00019223,2]
[399766283,1766661045457,-150.0,0.00019223,2]
[399766284,1766661045467,-150.0,0.00019223,2]
[399766285,1766661045477,-150.0,0.00019223,2]
[399766286,1766661045487,-150.0,0.00019223,2]
[399766287,1766661045497,-150.0,0.00019223,2]
[399766288,1766661045508,-1220.37,0.00019288,2]
[399766289,1766661045518,-150.0,0.00019288,2]
[399766290,1766661045527,-1215.12,0.00019288,2]
[399766291,1766661045536,-255.36,0.00019288,2]
[399766292,1766661045546,-7134.80129929,0.000193,2]
[399766293,1766661045556,-610.0,0.00019355,2]
[399766294,1766661045569,-2258.0,0.00019355,2]
[399766295,1766661045579,-3240.1,0.0001942,2]
[399766296,1766661045590,-5818.8688599,0.00019424,2]
[399766297,1766661045599,-9035.0,0.00019471,2]
[399766298,1766661045610,-386.87667747,0.00019482,2]
[399766299,1766661045621,-743.50770149,0.00019482,2]
[399766300,1766661045631,-1220.37,0.00019945,2]
[399766301,1766661045642,-1220.37,0.00019945,2]
[399766302,1766661045651,-1220.37,0.00019945,2]
[399766303,1766661045661,-1220.37,0.00019945,2]
[399766304,1766661045671,-500.0,0.0001997,2]
[399766305,1766661045680,-5570.45453968,0.0002,2]
[399766306,1766661045692,-190.0,0.0002,2]
[399766307,1766661045704,-200.0,0.0002,2]
[399766308,1766661045717,-150.0,0.0002,2]
[399766309,1766661045730,-186.82,0.0002,2]
[399766310,1766661045744,-354.70063134,0.00020089,2]
[399766311,1766661045757,-150.0,0.0002011,2]
[399766312,1766661045769,-554.09,0.0002011,2]
[399766313,1766661045781,-150.0,0.0002011,2]
[399766314,1766661045792,-150.0,0.0002011,2]
[399766315,1766661045803,-150.0,0.0002011,2]
[399766316,1766661045814,-150.0,0.0002011,2]
[399766317,1766661045825,-150.0,0.0002011,2]
[399766318,1766661045838,-150.0,0.0002011,2]
[399766319,1766661045850,-150.0,0.0002011,2]
[399766320,1766661045863,-150.0,0.0002011,2]
[399766321,1766661045875,-1220.37,0.0002011,2]
[399766322,1766661045886,-150.0,0.0002011,2]
[399766323,1766661045897,-1220.37,0.0002011,2]
[399766324,1766661045909,-1220.37,0.0002011,2]
[399766325,1766661045921,-500.0,0.0002017,2]
[399766326,1766661045933,-1000.0,0.00020187,2]
[399766327,1766661045946,-2016.84817673,0.00020328,2]
[399766328,1766661045958,-573.89559161,0.00020567,2]
[399766329,1766661045970,-15407.0444481,0.00020601,2]
[399766330,1766661045981,-1219.58,0.00020685,2]
[399766331,1766661045993,-398.0,0.000207,2]
[399766332,1766661046006,-500.0,0.0002077,2]
[399766333,1766661046017,-500.0,0.0002077,2]
[399766334,1766661046029,-250.0,0.00020772,2]
[399766335,1766661046040,-250.0,0.00020772,2]
[399766336,1766661046051,-179.17531653,0.00020772,2]
[399766337,1766661046061,-150.0,0.00020773,2]
[399766338,1766661046075,-1635.54300663,0.00020773,2]
[399766339,1766661046087,-150.0,0.00020773,2]
[399766340,1766661046100,-582.15173695,0.00020773,2]
[399766341,1766661046112,-3582.1832954,0.00020789,2]
[399766342,1766661046126,-786.35819886,0.000208,2]
[399766343,1766661046138,-401.19111454,0.00020851,2]
[399766344,1766661046151,-309.46072033,0.00020951,2]
[399766345,1766661046163,-152.40600789,0.00020996,2]
[399766346,1766661046176,-233.72,0.00021,7]
[399766347,1766661046187,-350.0,0.00021,2]
[399766348,1766661046199,-3240.1,0.000212,2]
[399766349,1766661046211,-2735.0,0.00021269,2]
[399766350,1766661046223,-797.67684343,0.000213,2]
[399766351,1766661046236,-347.0,0.00021418,2]
[399766352,1766661046247,-799.2931323,0.00021635,2]
[399766353,1766661046260,-644.13,0.00021918,30]
[399766354,1766661046272,-5000.0,0.00021918,2]
[399766355,1766661046284,-1000.0,0.00021918,2]
[399766356,1766661046296,-500.0,0.00021918,2]
[399766357,1766661046308,-500.0,0.00021918,2]
[399766358,1766661046320,-500.0,0.00021918,2]
[399766359,1766661046333,-497.80280423,0.00021918,2]
[399766360,1766661046346,-500.0,0.00021918,2]
[399766361,1766661046357,-500.0,0.00021918,2]
[399766362,1766661046369,-500.0,0.00021918,2]
[399766363,1766661046382,-388.64475602,0.00021918,2]
[399766364,1766661046395,-239.84119403,0.00021948,2]
[399766365,1766661046406,-503.17927055,0.00021999,2]
[399766366,1766661046417,-175.82,0.00022,7]
[399766367,1766661046428,-30009.83,0.00022,7]
[399766368,1766661046441,-3459.0,0.00022171,2]
[399766369,1766661046453,-1327.0,0.00022171,2]
[399766370,1766661046464,-612.0,0.00022171,2]
[399766371,1766661046476,-1610.0,0.00022171,2]
[399766372,1766661046487,-1263.0,0.00022171,2]
[399766373,1766661046499,-432.0,0.00022171,2]
[399766374,1766661046511,-564.0,0.00022181,2]
[399766375,1766661046524,-6534.0,0.00022181,2]
[399766376,1766661046536,-4807.0,0.00022181,2]
[399766377,1766661046549,-1000.0,0.00022192,2]
[399766378,1766661046561,-305.49622234,0.0002222,2]
[399766379,1766661046572,-150.0,0.00022223,2]
[399766380,1766661046583,-150.0,0.00022223,2]
[399766381,1766661046594,-150.0,0.00022223,2]
[399766382,1766661046605,-150.0,0.00022223,2]
[399766383,1766661046616,-150.0,0.00022223,2]
[399766384,1766661046628,-150.0,0.00022223,2]
[399766385,1766661046640,-150.0,0.00022223,2]
[399766386,1766661046650,-150.0,0.00022223,2]
[399766387,1766661046661,-15407.0444481,0.00022401,2]
[399766388,1766661046671,-554.23,0.00022567,2]
[399766389,1766661046681,-554.23,0.00022567,2]
[399766390,1766661046693,-554.23,0.00022567,2]
[399766391,1766661046704,-554.23,0.00022567,2]
[399766392,1766661046715,-554.23,0.00022567,2]
[399766393,1766661046728,-1112.98,0.00022567,2]
[399766394,1766661046740,-3240.1,0.0002298,2]
[399766395,1766661046752,-400.0,0.00023,2]
[399766396,1766661046765,-161.0,0.00023,7]
[399766397,1766661046775,-531.21073376,0.00023069,2]
[399766398,1766661046786,-659.62,0.00023288,2]
[399766399,1766661046797,-659.62,0.00023288,2]
[399766400,1766661046807,-659.62,0.00023288,2]
[399766401,1766661046818,-659.62,0.00023288,2]
[399766402,1766661046828,-659.62,0.00023288,2]
[399766403,1766661046839,-659.62,0.00023288,2]
[399766404,1766661046850,-659.62,0.00023288,2]
[399766405,1766661046861,-659.62,0.00023288,2]
[399766406,1766661046873,-659.62,0.00023288,2]
[399766407,1766661046885,-656.54,0.00023288,2]
[399766408,1766661046896,-659.62,0.00023288,2]
[399766409,1766661046908,-161.0,0.00023288,7]
[399766410,1766661046919,-2016.84817673,0.00023471,2]
[399766411,1766661046932,-659.62,0.00023671,2]
[399766412,1766661046943,-659.62,0.00023671,2]
[399766413,1766661046953,-659.62,0.00023671,2]
[399766414,1766661046964,-225.69814737,0.00023844,4]
[399766415,1766661046975,-150.0,0.00023844,4]
[399766416,1766661046985,-183.38649304,0.00023844,4]
[399766417,1766661046996,-221.74035981,0.00023844,4]
[399766418,1766661047007,-150.0,0.00023844,4]
[399766419,1766661047019,-152.33568841,0.00023844,4]
[399766420,1766661047030,-311.72094097,0.00023844,4]
[399766421,1766661047041,-150.0,0.00023844,4]
[399766422,1766661047052,-162.1085878,0.00023844,4]
[399766423,1766661047063,-150.0,0.00023844,4]
[399766424,1766661047076,-150.0,0.00023844,4]
[399766425,1766661047087,-150.0,0.00023844,4]
[399766426,1766661047099,-150.0,0.00023844,4]
[399766427,1766661047109,-150.0,0.00023844,4]
[399766428,1766661047122,-150.0,0.00023844,4]
[399766429,1766661047134,-225.69814737,0.00023871,4]
[399766430,1766661047145,-221.74035981,0.00023871,4]
[399766431,1766661047158,-152.33568841,0.00023871,4]
[399766432,1766661047168,-311.72094097,0.00023871,4]
[399766433,1766661047179,-162.1085878,0.00023871,4]
[399766434,1766661047190,-150.0,0.00023877,4]
[399766435,1766661047202,-150.0,0.00023893,4]
[399766436,1766661047213,-225.69814737,0.00023897,4]
[399766437,1766661047224,-221.74035981,0.00023897,4]
[399766438,1766661047235,-152.33568841,0.00023897,4]
[399766439,1766661047246,-311.72094097,0.00023897,4]
[399766440,1766661047257,-162.1085878,0.00023897,4]
[399766441,1766661047268,-150.0,0.0002391,4]
[399766442,1766661047279,-150.0,0.0002391,4]
[399766443,1766661047291,-225.69814737,0.00023924,4]
[399766444,1766661047302,-221.74035981,0.00023924,4]
[399766445,1766661047312,-152.33568841,0.00023924,4]
[399766446,1766661047323,-311.72094097,0.00023924,4]
[399766447,1766661047334,-162.1085878,0.00023924,4]
[399766448,1766661047346,-150.0,0.00023942,4]
[399766449,1766661047356,-150.0,0.00023942,4]
[399766450,1766661047367,-150.0,0.00023943,4]
[399766451,1766661047378,-151.0,0.00023948,7]
[399766452,1766661047390,-225.69814737,0.00023951,4]
[399766453,1766661047401,-221.74035981,0.00023951,4]
[399766454,1766661047412,-152.33568841,0.00023951,4]
[399766455,1766661047423,-311.72094097,0.00023951,4]
[399766456,1766661047434,-162.1085878,0.00023951,4]
[399766457,1766661047446,-150.0,0.00023976,4]
[399766458,1766661047458,-150.0,0.00023976,4]
[399766459,1766661047470,-150.0,0.00023976,4]
[399766460,1766661047481,-225.69814737,0.00023978,4]
[399766461,1766661047492,-221.74035981,0.00023978,4]
[399766462,1766661047503,-152.33568841,0.00023978,4]
[399766463,1766661047513,-311.72094097,0.00023978,4]
[399766464,1766661047525,-162.1085878,0.00023978,4]
[399766465,1766661047536,-150.0,0.00023991,4]
[399766466,1766661047547,-225.69814737,0.00024004,4]
[399766467,1766661047558,-221.74035981,0.00024004,4]
[399766468,1766661047569,-152.33568841,0.00024004,4]
[399766469,1766661047579,-311.72094097,0.00024004,4]
[399766470,1766661047590,-162.1085878,0.00024004,4]
[399766471,1766661047601,-150.0,0.00024009,4]
[399766472,1766661047612,-225.69814737,0.00024031,4]
[399766473,1766661047623,-221.74035981,0.00024031,4]
[399766474,1766661047635,-152.33568841,0.00024031,4]
[399766475,1766661047646,-311.72094097,0.00024031,4]
[399766476,1766661047656,-162.1085878,0.00024031,4]
[399766477,1766661047667,-150.0,0.0002404,4]
[399766478,1766661047678,-150.0,0.0002404,4]
[399766479,1766661047689,-150.0,0.00024043,4]
[399766480,1766661047699,-150.0,0.00024043,4]
[399766481,1766661047709,-225.69814737,0.00024058,4]
[399766482,1766661047720,-221.74035981,0.00024058,4]
[399766483,1766661047731,-152.33568841,0.00024058,4]
[399766484,1766661047742,-311.72094097,0.00024058,4]
[399766485,1766661047753,-162.1085878,0.00024058,4]
[399766486,1766661047763,-150.0,0.00024076,4]
[399766487,1766661047774,-225.69814737,0.00024085,4]
[399766488,1766661047784,-221.74035981,0.00024085,4]
[399766489,1766661047794,-152.33568841,0.00024085,4]
[399766490,1766661047804,-311.72094097,0.00024085,4]
[399766491,1766661047814,-162.1085878,0.00024085,4]
[399766492,1766661047824,-150.0,0.00024089,4]
[399766493,1766661047835,-150.0,0.00024109,4]
[399766494,1766661047845,-150.0,0.00024109,4]
[399766495,1766661047856,-150.0,0.00024109,4]
[399766496,1766661047869,-225.69814737,0.00024111,4]
[399766497,1766661047880,-221.74035981,0.00024111,4]
[399766498,1766661047890,-152.33568841,0.00024111,4]
[399766499,1766661047900,-311.72094097,0.00024111,4]
[399766500,1766661047910,-162.1085878,0.00024111,4]
[399766501,1766661047920,-225.69814737,0.00024138,4]
[399766502,1766661047931,-221.74035981,0.00024138,4]
[399766503,1766661047941,-152.33568841,0.00024138,4]
[399766504,1766661047953,-311.72094097,0.00024138,4]
[399766505,1766661047963,-162.1085878,0.00024138,4]
[399766506,1766661047974,-150.0,0.00024138,4]
[399766507,1766661047985,-150.0,0.00024138,4]
[399766508,1766661047996,-150.0,0.00024138,4]
[399766509,1766661048007,-150.0,0.00024142,4]
[399766510,1766661048017,-161.0,0.00024164,7]
[399766511,1766661048028,-225.69814737,0.00024165,4]
[399766512,1766661048039,-221.74035981,0.00024165,4]
[399766513,1766661048050,-152.33568841,0.00024165,4]
[399766514,1766661048060,-311.72094097,0.00024165,4]
[399766515,1766661048071,-162.1085878,0.00024165,4]
[399766516,1766661048084,-150.0,0.00024175,4]
[399766517,1766661048095,-150.0,0.00024175,4]
[399766518,1766661048106,-150.0,0.00024187,4]
[399766519,1766661048118,-225.69814737,0.00024192,4]
[399766520,1766661048129,-221.74035981,0.00024192,4]
[399766521,1766661048139,-152.33568841,0.00024192,4]
[399766522,1766661048154,-311.72094097,0.00024192,4]
[399766523,1766661048165,-162.1085878,0.00024192,4]
[399766524,1766661048175,-701.16,0.000242,14]
[399766525,1766661048186,-150.0,0.00024208,4]
[399766526,1766661048197,-225.69814737,0.00024218,4]
[399766527,1766661048207,-221.74035981,0.00024218,4]
[399766528,1766661048218,-152.33568841,0.00024218,4]
[399766529,1766661048228,-311.72094097,0.00024218,4]
[399766530,1766661048239,-162.1085878,0.00024218,4]
[399766531,1766661048250,-150.0,0.00024222,4]
[399766532,1766661048261,-573.89559161,0.00024233,2]
[399766533,1766661048271,-150.0,0.00024236,4]
[399766534,1766661048282,-150.0,0.00024236,4]
[399766535,1766661048293,-150.0,0.00024241,4]
[399766536,1766661048303,-150.0,0.00024241,4]
[399766537,1766661048314,-150.0,0.00024241,4]
[399766538,1766661048324,-225.69814737,0.00024245,4]
[399766539,1766661048335,-221.74035981,0.00024245,4]
[399766540,1766661048345,-152.33568841,0.00024245,4]
[399766541,1766661048357,-311.72094097,0.00024245,4]
[399766542,1766661048367,-162.1085878,0.00024245,4]
[399766543,1766661048378,-225.69814737,0.00024272,4]
[399766544,1766661048389,-221.74035981,0.00024272,4]
[399766545,1766661048399,-152.33568841,0.00024272,4]
[399766546,1766661048410,-311.72094097,0.00024272,4]
[399766547,1766661048421,-162.1085878,0.00024272,4]
[399766548,1766661048433,-150.0,0.00024274,4]
[399766549,1766661048443,-150.0,0.00024285,4]
[399766550,1766661048455,-225.69814737,0.00024299,4]
[399766551,1766661048465,-221.74035981,0.00024299,4]
[399766552,1766661048475,-152.33568841,0.00024299,4]
[399766553,1766661048488,-311.72094097,0.00024299,4]
[399766554,1766661048498,-162.1085878,0.00024299,4]
[399766555,1766661048509,-150.0,0.00024307,4]
[399766556,1766661048520,-150.0,0.00024307,4]
[399766557,1766661048531,-225.69814737,0.00024326,4]
[399766558,1766661048542,-221.74035981,0.00024326,4]
[399766559,1766661048552,-152.33568841,0.00024326,4]
[399766560,1766661048563,-311.72094097,0.00024326,4]
[399766561,1766661048574,-162.1085878,0.00024326,4]
[399766562,1766661048585,-150.0,0.00024334,4]
[399766563,1766661048595,-150.0,0.00024334,4]
[399766564,1766661048606,-150.0,0.00024341,4]
[399766565,1766661048616,-225.69814737,0.00024352,4]
[399766566,1766661048627,-221.74035981,0.00024352,4]
[399766567,1766661048637,-152.33568841,0.00024352,4]
[399766568,1766661048648,-311.72094097,0.00024352,4]
[399766569,1766661048658,-162.1085878,0.00024352,4]
[399766570,1766661048669,-150.0,0.00024374,4]
[399766571,1766661048679,-150.0,0.00024374,4]
[399766572,1766661048690,-150.0,0.00024374,4]
[399766573,1766661048700,-150.0,0.00024374,4]
[399766574,1766661048711,-225.69814737,0.00024379,4]
[399766575,1766661048721,-221.74035981,0.00024379,4]
[399766576,1766661048731,-152.33568841,0.00024379,4]
[399766577,1766661048741,-311.72094097,0.00024379,4]
[399766578,1766661048751,-162.1085878,0.00024379,4]
[399766579,1766661048762,-150.0,0.00024384,4]
[399766580,1766661048773,-225.69814737,0.00024406,4]
[399766581,1766661048784,-221.74035981,0.00024406,4]
[399766582,1766661048795,-152.33568841,0.00024406,4]
[399766583,1766661048805,-311.72094097,0.00024406,4]
[399766584,1766661048816,-162.1085878,0.00024406,4]
[399766585,1766661048827,-150.0,0.00024407,4]
[399766586,1766661048837,-225.69814737,0.00024433,4]
[399766587,1766661048848,-221.74035981,0.00024433,4]
[399766588,1766661048859,-152.33568841,0.00024433,4]
[399766589,1766661048869,-311.72094097,0.00024433,4]
[399766590,1766661048880,-162.1085878,0.00024433,4]
[399766591,1766661048890,-150.0,0.00024433,4]
[399766592,1766661048902,-150.0,0.00024433,4]
[399766593,1766661048913,-150.0,0.00024433,4]
[399766594,1766661048924,-150.0,0.0002444,4]
[399766595,1766661048935,-150.0,0.0002444,4]
[399766596,1766661048945,-225.69814737,0.00024459,4]
[399766597,1766661048956,-221.74035981,0.00024459,4]
[399766598,1766661048967,-152.33568841,0.00024459,4]
[399766599,1766661048977,-311.72094097,0.00024459,4]
[399766600,1766661048988,-162.1085878,0.00024459,4]